[Event "Titled Tuesday Blitz February 01 A 2022"]
[White "Moksh Amit Doshi"]
[Black "Svane, Rasmus"]
[WhiteFideId "25064967"]
[BlackFideId "4657101"]
[WhiteElo "2245"]
[BlackElo "2645"]
[Result "1-0"]
[Round "01"]
[TimeControl "180+1"]
[Date "2022.02.01"]
[WhiteClock "0:00:47"]
[BlackClock "0:00:05"]

1. d4 {[%clk 0:02:55]}  Nf6 {[%clk 0:02:59]} 2. c4 {[%clk 0:02:53]}  e6 {[%clk 0:03:00]} 3. Nf3 {[%clk 0:02:51]}  d5 {[%clk 0:02:59]} 4. Nc3 {[%clk 0:02:50]}  a6 {[%clk 0:03:00]} 5. cxd5 {[%clk 0:02:47]}  exd5 {[%clk 0:03:00]} 6. Bg5 {[%clk 0:02:47]}  Be6 {[%clk 0:03:00]} 7. e3 {[%clk 0:02:48]}  Nbd7 {[%clk 0:02:56]} 8. Bd3 {[%clk 0:02:45]}  Bd6 {[%clk 0:02:56]} 9. h3 {[%clk 0:02:43]}  c6 {[%clk 0:02:56]} 10. O-O {[%clk 0:02:39]}  Qc7 {[%clk 0:02:56]} 11. Qd2 {[%clk 0:02:32]}  h6 {[%clk 0:02:56]} 12. Bf4 {[%clk 0:02:32]}  O-O {[%clk 0:02:53]} 13. Rac1 {[%clk 0:02:31]}  Rfe8 {[%clk 0:02:50]} 14. Rfe1 {[%clk 0:02:29]}  Rac8 {[%clk 0:02:31]} 15. a4 {[%clk 0:02:27]}  a5 {[%clk 0:02:30]} 16. Nb5 {[%clk 0:02:24]}  Bxf4 {[%clk 0:02:01]} 17. Nxc7 {[%clk 0:02:20]}  Bxc7 {[%clk 0:02:01]} 18. b4 {[%clk 0:02:08]}  axb4 {[%clk 0:01:47]} 19. Qxb4 {[%clk 0:02:09]}  Rb8 {[%clk 0:01:45]} 20. a5 {[%clk 0:02:07]}  Rec8 {[%clk 0:01:38]} 21. Qa3 {[%clk 0:02:03]}  Ra8 {[%clk 0:01:34]} 22. a6 {[%clk 0:01:58]}  Nb8 {[%clk 0:01:24]} 23. Qb3 {[%clk 0:01:43]}  b6 {[%clk 0:01:23]} 24. Rc2 {[%clk 0:01:40]}  Bd7 {[%clk 0:01:08]} 25. Ne5 {[%clk 0:01:38]}  Be8 {[%clk 0:01:08]} 26. Rec1 {[%clk 0:01:37]}  g6 {[%clk 0:00:46]} 27. f4 {[%clk 0:01:33]}  Ra7 {[%clk 0:00:34]} 28. Be2 {[%clk 0:01:16]}  Kg7 {[%clk 0:00:30]} 29. Kh1 {[%clk 0:01:14]}  b5 {[%clk 0:00:29]} 30. Nd3 {[%clk 0:01:05]}  Rxa6 {[%clk 0:00:26]} 31. Nb4 {[%clk 0:01:04]}  Rb6 {[%clk 0:00:26]} 32. Qa2 {[%clk 0:01:03]}  Bd6 {[%clk 0:00:24]} 33. Nd3 {[%clk 0:01:02]}  Ne4 {[%clk 0:00:17]} 34. Nc5 {[%clk 0:01:02]}  Bxc5 {[%clk 0:00:17]} 35. dxc5 {[%clk 0:01:03]}  Ra6 {[%clk 0:00:15]} 36. Qb2+ {[%clk 0:01:03]}  Kg8 {[%clk 0:00:16]} 37. Bd3 {[%clk 0:01:01]}  Nd7 {[%clk 0:00:10]} 38. Bxe4 {[%clk 0:01:00]}  dxe4 {[%clk 0:00:11]} 39. Qd4 {[%clk 0:00:59]}  Ra4 {[%clk 0:00:12]} 40. Qd6 {[%clk 0:00:58]}  Nf8 {[%clk 0:00:11]} 41. Rd2 {[%clk 0:00:55]}  Ne6 {[%clk 0:00:11]} 42. Qe5 {[%clk 0:00:53]}  Rca8 {[%clk 0:00:06]} 43. Rcd1 {[%clk 0:00:52]}  b4 {[%clk 0:00:05]} 44. f5 {[%clk 0:00:51]}  gxf5 {[%clk 0:00:05]} 45. Qxf5 {[%clk 0:00:52]}  b3 {[%clk 0:00:06]} 46. Rb2 {[%clk 0:00:49]}  Ra1 {[%clk 0:00:05]} 47. Rxa1 {[%clk 0:00:49]}  Rxa1+ {[%clk 0:00:06]} 48. Kh2 {[%clk 0:00:49]}  Ra3 {[%clk 0:00:07]} 49. Qxe4 {[%clk 0:00:48]}  Bd7 {[%clk 0:00:04]} 50. Qb4 {[%clk 0:00:48]}  Ra2 {[%clk 0:00:03]} 51. Qxb3 {[%clk 0:00:49]}  Ra5 {[%clk 0:00:03]} 52. Qb8+ {[%clk 0:00:48]}  Kg7 {[%clk 0:00:03]} 53. Qe5+ {[%clk 0:00:48]}  Kg6 {[%clk 0:00:04]} 54. Qd6 {[%clk 0:00:47]}  Rxc5 {[%clk 0:00:04]} 55. Qxd7 {[%clk 0:00:47]}  Rd5 {[%clk 0:00:04]} 56. Qxc6 {[%clk 0:00:47]}  Rf5 {[%clk 0:00:05]} 57. Qe4 {[%clk 0:00:47]} 1-0


[Site "https://www.chess.com"]

[Event "Titled Tuesday Blitz February 01 A 2022"]
[White "Omariev, Maksim"]
[Black "Sychev, Klementy"]
[WhiteFideId "4193423"]
[BlackFideId "4114060"]
[WhiteElo "2508"]
[BlackElo "2564"]
[Result "0-1"]
[Round "01"]
[TimeControl "180+1"]
[Date "2022.02.01"]
[WhiteClock "0:00:05"]
[BlackClock "0:00:05"]

1. g4 {[%clk 0:03:00]}  d5 {[%clk 0:02:58]} 2. Bg2 {[%clk 0:02:59]}  c6 {[%clk 0:02:56]} 3. h3 {[%clk 0:02:59]}  e5 {[%clk 0:02:56]} 4. d4 {[%clk 0:02:59]}  exd4 {[%clk 0:02:43]} 5. Qxd4 {[%clk 0:02:58]}  Nf6 {[%clk 0:02:40]} 6. c4 {[%clk 0:02:32]}  Be6 {[%clk 0:02:25]} 7. g5 {[%clk 0:02:26]}  Bb4+ {[%clk 0:02:06]} 8. Bd2 {[%clk 0:02:22]}  Bxd2+ {[%clk 0:01:54]} 9. Nxd2 {[%clk 0:02:23]}  Nh5 {[%clk 0:01:53]} 10. Ngf3 {[%clk 0:01:20]}  O-O {[%clk 0:01:51]} 11. O-O-O {[%clk 0:01:15]}  Na6 {[%clk 0:01:36]} 12. Kb1 {[%clk 0:01:06]}  dxc4 {[%clk 0:01:09]} 13. Nxc4 {[%clk 0:01:03]}  Bf5+ {[%clk 0:01:09]} 14. e4 {[%clk 0:01:02]}  Be6 {[%clk 0:01:03]} 15. Qe3 {[%clk 0:00:55]}  Qc7 {[%clk 0:01:02]} 16. Nd6 {[%clk 0:00:47]}  Rfd8 {[%clk 0:00:59]} 17. e5 {[%clk 0:00:47]}  Nb4 {[%clk 0:00:57]} 18. a3 {[%clk 0:00:44]}  Ba2+ {[%clk 0:00:52]} 19. Kc1 {[%clk 0:00:42]}  Nd5 {[%clk 0:00:52]} 20. Qe4 {[%clk 0:00:32]}  Nhf4 {[%clk 0:00:43]} 21. Bf1 {[%clk 0:00:32]}  Qb6 {[%clk 0:00:40]} 22. Nd4 {[%clk 0:00:26]}  Rd7 {[%clk 0:00:19]} 23. Qc2 {[%clk 0:00:25]}  a6 {[%clk 0:00:14]} 24. b3 {[%clk 0:00:24]}  c5 {[%clk 0:00:15]} 25. Qxa2 {[%clk 0:00:17]}  cxd4 {[%clk 0:00:15]} 26. Bc4 {[%clk 0:00:18]}  Qc5 {[%clk 0:00:08]} 27. b4 {[%clk 0:00:15]}  Qc6 {[%clk 0:00:07]} 28. Rxd4 {[%clk 0:00:12]}  Nc3 {[%clk 0:00:06]} 29. Qc2 {[%clk 0:00:11]}  Qxh1+ {[%clk 0:00:05]} 30. Kb2 {[%clk 0:00:10]}  Na4+ {[%clk 0:00:04]} 31. Qxa4 {[%clk 0:00:10]}  Rc7 {[%clk 0:00:03]} 32. Bxf7+ {[%clk 0:00:08]}  Kh8 {[%clk 0:00:03]} 33. Bc4 {[%clk 0:00:07]}  b5 {[%clk 0:00:02]} 34. Nxb5 {[%clk 0:00:06]}  axb5 {[%clk 0:00:02]} 35. Qd1 {[%clk 0:00:05]}  Qxd1 {[%clk 0:00:02]} 36. Rxd1 {[%clk 0:00:05]}  bxc4 {[%clk 0:00:02]} 37. e6 {[%clk 0:00:05]}  c3+ {[%clk 0:00:03]} 38. Kc2 {[%clk 0:00:06]}  Nxe6 {[%clk 0:00:04]} 39. Re1 {[%clk 0:00:06]}  Nxg5 {[%clk 0:00:05]} 40. Kb3 {[%clk 0:00:05]}  Nf3 {[%clk 0:00:05]} 41. Re3 {[%clk 0:00:05]}  c2 {[%clk 0:00:05]} 0-1


[Site "https://www.chess.com"]

[Event "Titled Tuesday Blitz February 01 A 2022"]
[White "Ratnakaran, K."]
[Black "Martirosyan, Haik M."]
[WhiteFideId "5005507"]
[BlackFideId "13306553"]
[WhiteElo "2391"]
[BlackElo "2735"]
[Result "1-0"]
[Round "01"]
[TimeControl "180+1"]
[Date "2022.02.01"]
[WhiteClock "0:01:08"]
[BlackClock "0:00:35"]

1. e4 {[%clk 0:03:00]}  c5 {[%clk 0:02:59]} 2. Nf3 {[%clk 0:02:59]}  d6 {[%clk 0:02:59]} 3. c3 {[%clk 0:02:59]}  Nf6 {[%clk 0:02:59]} 4. h3 {[%clk 0:02:59]}  Bd7 {[%clk 0:02:58]} 5. Bd3 {[%clk 0:02:59]}  Bc6 {[%clk 0:02:58]} 6. Qe2 {[%clk 0:02:59]}  Nbd7 {[%clk 0:02:57]} 7. O-O {[%clk 0:02:58]}  e6 {[%clk 0:02:58]} 8. Bc2 {[%clk 0:02:58]}  Be7 {[%clk 0:02:58]} 9. d4 {[%clk 0:02:58]}  O-O {[%clk 0:02:57]} 10. Rd1 {[%clk 0:02:57]}  cxd4 {[%clk 0:02:57]} 11. cxd4 {[%clk 0:02:57]}  b5 {[%clk 0:02:45]} 12. a3 {[%clk 0:02:48]}  a5 {[%clk 0:02:37]} 13. Nc3 {[%clk 0:02:44]}  b4 {[%clk 0:02:35]} 14. d5 {[%clk 0:02:44]}  exd5 {[%clk 0:02:21]} 15. exd5 {[%clk 0:02:38]}  Bb7 {[%clk 0:02:20]} 16. Nb5 {[%clk 0:02:37]}  Bxd5 {[%clk 0:02:11]} 17. Bf4 {[%clk 0:02:30]}  Nb6 {[%clk 0:02:07]} 18. axb4 {[%clk 0:02:27]}  axb4 {[%clk 0:01:59]} 19. Rxa8 {[%clk 0:02:26]}  Nxa8 {[%clk 0:01:53]} 20. Nfd4 {[%clk 0:02:23]}  Re8 {[%clk 0:01:50]} 21. Bg5 {[%clk 0:02:13]}  Nb6 {[%clk 0:01:44]} 22. Nf5 {[%clk 0:02:10]}  Bc4 {[%clk 0:01:42]} 23. Bd3 {[%clk 0:01:43]}  Bxd3 {[%clk 0:01:24]} 24. Rxd3 {[%clk 0:01:35]}  d5 {[%clk 0:01:23]} 25. Rg3 {[%clk 0:01:27]}  Nbd7 {[%clk 0:01:04]} 26. Nxg7 {[%clk 0:01:17]}  Kxg7 {[%clk 0:00:50]} 27. Bh6+ {[%clk 0:01:14]}  Kh8 {[%clk 0:00:36]} 28. Bg7+ {[%clk 0:01:13]}  Kg8 {[%clk 0:00:37]} 29. Bxf6+ {[%clk 0:01:14]}  Kf8 {[%clk 0:00:38]} 30. Bg7+ {[%clk 0:01:14]}  Kg8 {[%clk 0:00:38]} 31. Bf6+ {[%clk 0:01:08]}  Kf8 {[%clk 0:00:39]} 32. Rg8+ {[%clk 0:01:08]}  Kxg8 {[%clk 0:00:34]} 33. Qg4+ {[%clk 0:01:09]}  Kf8 {[%clk 0:00:35]} 34. Qg7# {[%clk 0:01:08]} 1-0


[Site "https://www.chess.com"]

[Event "Titled Tuesday Blitz February 01 A 2022"]
[White "Sjugirov, Sanan"]
[Black "Prraneeth Vuppala"]
[WhiteFideId "4189302"]
[BlackFideId "46622373"]
[WhiteElo "2602"]
[BlackElo "1759"]
[Result "1/2-1/2"]
[Round "01"]
[TimeControl "180+1"]
[Date "2022.02.01"]
[WhiteClock "0:00:04"]
[BlackClock "0:00:07"]

1. e4 {[%clk 0:03:00]}  e5 {[%clk 0:02:59]} 2. Nf3 {[%clk 0:03:00]}  Nc6 {[%clk 0:02:59]} 3. Bb5 {[%clk 0:03:00]}  a6 {[%clk 0:02:59]} 4. Ba4 {[%clk 0:03:00]}  Nf6 {[%clk 0:02:59]} 5. O-O {[%clk 0:03:00]}  b5 {[%clk 0:02:59]} 6. Bb3 {[%clk 0:03:00]}  Bc5 {[%clk 0:02:59]} 7. a4 {[%clk 0:02:54]}  Rb8 {[%clk 0:02:58]} 8. c3 {[%clk 0:02:47]}  d6 {[%clk 0:02:58]} 9. d4 {[%clk 0:02:46]}  Bb6 {[%clk 0:02:58]} 10. a5 {[%clk 0:02:41]}  Ba7 {[%clk 0:02:57]} 11. Be3 {[%clk 0:02:40]}  Bb7 {[%clk 0:02:57]} 12. Re1 {[%clk 0:02:26]}  exd4 {[%clk 0:02:13]} 13. cxd4 {[%clk 0:02:20]}  Ne7 {[%clk 0:02:11]} 14. Nbd2 {[%clk 0:02:03]}  O-O {[%clk 0:01:46]} 15. Bg5 {[%clk 0:01:46]}  Ng6 {[%clk 0:01:08]} 16. e5 {[%clk 0:01:42]}  dxe5 {[%clk 0:01:08]} 17. dxe5 {[%clk 0:01:43]}  h6 {[%clk 0:01:04]} 18. exf6 {[%clk 0:01:08]}  hxg5 {[%clk 0:01:03]} 19. Nxg5 {[%clk 0:01:01]}  Qxf6 {[%clk 0:01:03]} 20. Nde4 {[%clk 0:00:37]}  Bxe4 {[%clk 0:01:00]} 21. Nxe4 {[%clk 0:00:35]}  Qxb2 {[%clk 0:00:58]} 22. Qf3 {[%clk 0:00:24]}  c5 {[%clk 0:00:23]} 23. Bd5 {[%clk 0:00:21]}  Rbd8 {[%clk 0:00:21]} 24. Rad1 {[%clk 0:00:20]}  Qe5 {[%clk 0:00:19]} 25. Nxc5 {[%clk 0:00:12]}  Qf4 {[%clk 0:00:13]} 26. Nxa6 {[%clk 0:00:07]}  Qa4 {[%clk 0:00:09]} 27. Bxf7+ {[%clk 0:00:05]}  Rxf7 {[%clk 0:00:08]} 28. Rxd8+ {[%clk 0:00:05]}  Nf8 {[%clk 0:00:09]} 29. Rxf8+ {[%clk 0:00:02]}  Rxf8 {[%clk 0:00:09]} 30. Qd5+ {[%clk 0:00:03]}  Kh8 {[%clk 0:00:09]} 31. Qh5+ {[%clk 0:00:03]}  Kg8 {[%clk 0:00:09]} 32. Kh1 {[%clk 0:00:03]}  Bxf2 {[%clk 0:00:08]} 33. Qd5+ {[%clk 0:00:03]}  Kh8 {[%clk 0:00:08]} 34. Rf1 {[%clk 0:00:04]}  Qxa5 {[%clk 0:00:07]} 35. Nc5 {[%clk 0:00:03]}  Bxc5 {[%clk 0:00:06]} 36. Qh5+ {[%clk 0:00:03]}  Kg8 {[%clk 0:00:06]} 37. Qd5+ {[%clk 0:00:04]}  Kh8 {[%clk 0:00:06]} 38. Qh5+ {[%clk 0:00:04]}  Kg8 {[%clk 0:00:06]} 39. Qd5+ {[%clk 0:00:04]}  Kh8 {[%clk 0:00:07]} 1/2-1/2


[Site "https://www.chess.com"]

[Event "Titled Tuesday Blitz February 01 A 2022"]
[White "Vusatiuk, Vladimir"]
[Black "Xiong, Jeffery"]
[WhiteFideId "14118610"]
[BlackFideId "2047640"]
[WhiteElo "2157"]
[BlackElo "2727"]
[Result "0-1"]
[Round "01"]
[TimeControl "180+1"]
[Date "2022.02.01"]
[WhiteClock "0:00:10"]
[BlackClock "0:01:40"]

1. d4 {[%clk 0:03:00]}  d5 {[%clk 0:02:53]} 2. c4 {[%clk 0:03:00]}  dxc4 {[%clk 0:02:54]} 3. Nf3 {[%clk 0:03:00]}  Nf6 {[%clk 0:02:55]} 4. e3 {[%clk 0:03:00]}  b5 {[%clk 0:02:55]} 5. a4 {[%clk 0:02:59]}  b4 {[%clk 0:02:56]} 6. Bxc4 {[%clk 0:02:58]}  e6 {[%clk 0:02:56]} 7. O-O {[%clk 0:02:53]}  Bb7 {[%clk 0:02:56]} 8. Nbd2 {[%clk 0:02:51]}  Nbd7 {[%clk 0:02:56]} 9. b3 {[%clk 0:02:51]}  c5 {[%clk 0:02:54]} 10. Bb2 {[%clk 0:02:50]}  Be7 {[%clk 0:02:54]} 11. Rc1 {[%clk 0:02:35]}  O-O {[%clk 0:02:53]} 12. Qe2 {[%clk 0:02:25]}  a6 {[%clk 0:02:39]} 13. Rfd1 {[%clk 0:02:21]}  Qb8 {[%clk 0:02:33]} 14. dxc5 {[%clk 0:02:08]}  Nxc5 {[%clk 0:02:34]} 15. Nd4 {[%clk 0:02:07]}  Rc8 {[%clk 0:02:24]} 16. f3 {[%clk 0:01:54]}  Nfd7 {[%clk 0:02:17]} 17. Nf1 {[%clk 0:01:30]}  Ne5 {[%clk 0:02:15]} 18. e4 {[%clk 0:01:06]}  Bg5 {[%clk 0:02:14]} 19. Ne3 {[%clk 0:01:04]}  Nxa4 {[%clk 0:02:03]} 20. bxa4 {[%clk 0:00:28]}  Bxe3+ {[%clk 0:02:02]} 21. Qxe3 {[%clk 0:00:29]}  Nxc4 {[%clk 0:02:02]} 22. Rxc4 {[%clk 0:00:20]}  Rxc4 {[%clk 0:02:03]} 23. Qg5 {[%clk 0:00:19]}  h6 {[%clk 0:01:41]} 24. Qg4 {[%clk 0:00:17]}  Qe5 {[%clk 0:01:39]} 25. Rd2 {[%clk 0:00:15]}  Qg5 {[%clk 0:01:39]} 26. Qxg5 {[%clk 0:00:14]}  hxg5 {[%clk 0:01:39]} 27. Nb3 {[%clk 0:00:12]}  a5 {[%clk 0:01:40]} 28. Kf2 {[%clk 0:00:10]}  Bc6 {[%clk 0:01:40]} 0-1


[Site "https://www.chess.com"]

[Event "Titled Tuesday Blitz February 01 A 2022"]
[White "Willow, Jonah B"]
[Black "Mahdian, Anousha"]
[WhiteFideId "438804"]
[BlackFideId "12571490"]
[WhiteElo "2261"]
[BlackElo "1767"]
[Result "1-0"]
[Round "01"]
[TimeControl "180+1"]
[Date "2022.02.01"]
[WhiteClock "0:01:15"]
[BlackClock "0:00:18"]

1. e4 {[%clk 0:03:00]}  c6 {[%clk 0:02:58]} 2. d4 {[%clk 0:02:59]}  d5 {[%clk 0:02:57]} 3. Nc3 {[%clk 0:03:00]}  dxe4 {[%clk 0:02:56]} 4. Nxe4 {[%clk 0:03:01]}  Nf6 {[%clk 0:02:55]} 5. Nxf6+ {[%clk 0:03:01]}  exf6 {[%clk 0:02:50]} 6. c3 {[%clk 0:03:02]}  Bd6 {[%clk 0:02:50]} 7. Bd3 {[%clk 0:03:02]}  O-O {[%clk 0:02:51]} 8. Ne2 {[%clk 0:03:02]}  Re8 {[%clk 0:02:52]} 9. O-O {[%clk 0:03:02]}  Nd7 {[%clk 0:02:52]} 10. Ng3 {[%clk 0:02:50]}  Nf8 {[%clk 0:02:50]} 11. f4 {[%clk 0:02:50]}  c5 {[%clk 0:02:43]} 12. d5 {[%clk 0:02:44]}  a6 {[%clk 0:02:31]} 13. c4 {[%clk 0:02:42]}  Rb8 {[%clk 0:02:25]} 14. a4 {[%clk 0:02:40]}  Qc7 {[%clk 0:02:19]} 15. Qf3 {[%clk 0:02:35]}  b5 {[%clk 0:02:14]} 16. axb5 {[%clk 0:02:34]}  axb5 {[%clk 0:02:14]} 17. b3 {[%clk 0:02:30]}  bxc4 {[%clk 0:02:12]} 18. bxc4 {[%clk 0:02:31]}  Rb3 {[%clk 0:02:11]} 19. Bxh7+ {[%clk 0:02:30]}  Nxh7 {[%clk 0:02:10]} 20. Qxb3 {[%clk 0:02:31]}  Bd7 {[%clk 0:02:07]} 21. Be3 {[%clk 0:02:25]}  Rb8 {[%clk 0:02:07]} 22. Qd3 {[%clk 0:02:23]}  Nf8 {[%clk 0:02:01]} 23. Rfb1 {[%clk 0:02:22]}  Re8 {[%clk 0:01:58]} 24. Bd2 {[%clk 0:02:20]}  Bxf4 {[%clk 0:01:56]} 25. Re1 {[%clk 0:02:16]}  Be5 {[%clk 0:01:49]} 26. Bc3 {[%clk 0:02:14]}  Ng6 {[%clk 0:01:46]} 27. Bxe5 {[%clk 0:02:08]}  Nxe5 {[%clk 0:01:45]} 28. Qc3 {[%clk 0:02:08]}  Rb8 {[%clk 0:01:42]} 29. Rab1 {[%clk 0:02:08]}  Ra8 {[%clk 0:01:40]} 30. Ra1 {[%clk 0:02:07]}  Rb8 {[%clk 0:01:36]} 31. Reb1 {[%clk 0:02:07]}  Re8 {[%clk 0:01:28]} 32. Rb2 {[%clk 0:02:04]}  f5 {[%clk 0:01:27]} 33. Rba2 {[%clk 0:02:03]}  f4 {[%clk 0:01:26]} 34. Ne4 {[%clk 0:02:02]}  Bf5 {[%clk 0:01:22]} 35. Ra7 {[%clk 0:02:02]}  Qb6 {[%clk 0:01:11]} 36. Ng5 {[%clk 0:02:01]}  Qf6 {[%clk 0:01:07]} 37. Ra8 {[%clk 0:01:57]}  Bc8 {[%clk 0:01:00]} 38. Ne4 {[%clk 0:01:56]}  Qg6 {[%clk 0:00:59]} 39. Rxc8 {[%clk 0:01:44]}  Rxc8 {[%clk 0:00:53]} 40. Qxe5 {[%clk 0:01:44]}  f3 {[%clk 0:00:52]} 41. Ng3 {[%clk 0:01:38]}  fxg2 {[%clk 0:00:48]} 42. Re1 {[%clk 0:01:32]}  Ra8 {[%clk 0:00:45]} 43. d6 {[%clk 0:01:30]}  Rd8 {[%clk 0:00:30]} 44. d7 {[%clk 0:01:27]}  Qe6 {[%clk 0:00:24]} 45. Qxe6 {[%clk 0:01:23]}  fxe6 {[%clk 0:00:25]} 46. Rd1 {[%clk 0:01:22]}  Kf7 {[%clk 0:00:20]} 47. Ne4 {[%clk 0:01:23]}  Ke7 {[%clk 0:00:20]} 48. Nxc5 {[%clk 0:01:23]}  e5 {[%clk 0:00:20]} 49. Kxg2 {[%clk 0:01:18]}  Rh8 {[%clk 0:00:20]} 50. Kf3 {[%clk 0:01:15]}  Rd8 {[%clk 0:00:18]} 51. Ke4 {[%clk 0:01:15]}  Kf6 {[%clk 0:00:18]} 52. Nb7 {[%clk 0:01:15]} 1-0


[Site "https://www.chess.com"]

[Event "Titled Tuesday Blitz February 01 A 2022"]
[White "Arabidze, Meri"]
[Black "Willow, Jonah B"]
[WhiteFideId "13604040"]
[BlackFideId "438804"]
[WhiteElo "2329"]
[BlackElo "2261"]
[Result "1-0"]
[Round "02"]
[TimeControl "180+1"]
[Date "2022.02.01"]
[WhiteClock "0:00:19"]
[BlackClock "0:00:03"]

1. d4 {[%clk 0:03:00]}  Nf6 {[%clk 0:02:59]} 2. Nf3 {[%clk 0:03:01]}  e6 {[%clk 0:03:00]} 3. g3 {[%clk 0:03:01]}  c5 {[%clk 0:02:59]} 4. Bg2 {[%clk 0:03:00]}  Nc6 {[%clk 0:02:57]} 5. O-O {[%clk 0:02:59]}  cxd4 {[%clk 0:02:55]} 6. Nxd4 {[%clk 0:03:00]}  Bc5 {[%clk 0:02:56]} 7. Nb3 {[%clk 0:02:59]}  Be7 {[%clk 0:02:56]} 8. c4 {[%clk 0:03:00]}  O-O {[%clk 0:02:55]} 9. Nc3 {[%clk 0:03:00]}  Na5 {[%clk 0:02:48]} 10. Nxa5 {[%clk 0:02:59]}  Qxa5 {[%clk 0:02:49]} 11. Bf4 {[%clk 0:02:58]}  e5 {[%clk 0:02:43]} 12. Bg5 {[%clk 0:02:57]}  Qc7 {[%clk 0:02:15]} 13. Rc1 {[%clk 0:02:53]}  d6 {[%clk 0:02:07]} 14. Bxf6 {[%clk 0:02:46]}  Bxf6 {[%clk 0:02:08]} 15. Nb5 {[%clk 0:02:25]}  Qa5 {[%clk 0:02:08]} 16. a3 {[%clk 0:02:25]}  Rd8 {[%clk 0:02:01]} 17. b4 {[%clk 0:02:25]}  Qb6 {[%clk 0:02:01]} 18. Nc3 {[%clk 0:02:10]}  Be6 {[%clk 0:01:59]} 19. Qd3 {[%clk 0:01:58]}  Rac8 {[%clk 0:01:55]} 20. Bd5 {[%clk 0:01:58]}  a6 {[%clk 0:01:36]} 21. Rfd1 {[%clk 0:01:58]}  Be7 {[%clk 0:01:26]} 22. e3 {[%clk 0:01:58]}  Qc7 {[%clk 0:01:21]} 23. Qe2 {[%clk 0:01:56]}  Rb8 {[%clk 0:01:14]} 24. Qf3 {[%clk 0:01:44]}  Qc8 {[%clk 0:01:02]} 25. Qg2 {[%clk 0:01:38]}  Bh3 {[%clk 0:00:56]} 26. Qh1 {[%clk 0:01:35]}  Bg4 {[%clk 0:00:57]} 27. Rd2 {[%clk 0:01:35]}  b5 {[%clk 0:00:51]} 28. cxb5 {[%clk 0:01:31]}  axb5 {[%clk 0:00:51]} 29. Rdc2 {[%clk 0:01:31]}  Qa6 {[%clk 0:00:47]} 30. Qe4 {[%clk 0:01:24]}  Be6 {[%clk 0:00:41]} 31. Ra2 {[%clk 0:01:06]}  Rdc8 {[%clk 0:00:40]} 32. Rcc2 {[%clk 0:01:05]}  Rc7 {[%clk 0:00:31]} 33. Qd3 {[%clk 0:00:37]}  Rbc8 {[%clk 0:00:19]} 34. Bxe6 {[%clk 0:00:35]}  fxe6 {[%clk 0:00:20]} 35. a4 {[%clk 0:00:36]}  d5 {[%clk 0:00:14]} 36. Nxb5 {[%clk 0:00:34]}  Rxc2 {[%clk 0:00:10]} 37. Rxc2 {[%clk 0:00:35]}  e4 {[%clk 0:00:07]} 38. Rxc8+ {[%clk 0:00:31]}  Qxc8 {[%clk 0:00:08]} 39. Qd2 {[%clk 0:00:32]}  Qc4 {[%clk 0:00:07]} 40. Qc3 {[%clk 0:00:22]}  Bxb4 {[%clk 0:00:06]} 41. Qe5 {[%clk 0:00:21]}  Qc6 {[%clk 0:00:05]} 42. Nd4 {[%clk 0:00:21]}  Qc1+ {[%clk 0:00:04]} 43. Kg2 {[%clk 0:00:21]}  Kh8 {[%clk 0:00:03]} 44. Qb8+ {[%clk 0:00:19]} 1-0


[Site "https://www.chess.com"]

[Event "Titled Tuesday Blitz February 01 A 2022"]
[White "Boros, Denes"]
[Black "Khegay, Dmitriy"]
[WhiteFideId "722340"]
[BlackFideId "24153729"]
[WhiteElo "2464"]
[BlackElo "2457"]
[Result "0-1"]
[Round "02"]
[TimeControl "180+1"]
[Date "2022.02.01"]
[WhiteClock "0:00:03"]
[BlackClock "0:00:43"]

1. e4 {[%clk 0:03:00]}  d6 {[%clk 0:02:56]} 2. c4 {[%clk 0:02:58]}  g6 {[%clk 0:02:56]} 3. Nc3 {[%clk 0:02:57]}  Bg7 {[%clk 0:02:57]} 4. Nf3 {[%clk 0:02:55]}  c5 {[%clk 0:02:56]} 5. d4 {[%clk 0:02:55]}  cxd4 {[%clk 0:02:55]} 6. Nxd4 {[%clk 0:02:56]}  Nc6 {[%clk 0:02:56]} 7. Be3 {[%clk 0:02:54]}  Nf6 {[%clk 0:02:55]} 8. Be2 {[%clk 0:02:51]}  O-O {[%clk 0:02:56]} 9. Qd2 {[%clk 0:02:51]}  Bd7 {[%clk 0:02:54]} 10. Rc1 {[%clk 0:02:46]}  Nxd4 {[%clk 0:02:54]} 11. Bxd4 {[%clk 0:02:46]}  Bc6 {[%clk 0:02:55]} 12. f3 {[%clk 0:02:41]}  a5 {[%clk 0:02:56]} 13. h4 {[%clk 0:02:40]}  h6 {[%clk 0:02:51]} 14. b3 {[%clk 0:02:38]}  Nd7 {[%clk 0:02:49]} 15. Be3 {[%clk 0:02:37]}  Kh7 {[%clk 0:02:45]} 16. h5 {[%clk 0:02:33]}  g5 {[%clk 0:02:42]} 17. g3 {[%clk 0:02:27]}  Nc5 {[%clk 0:02:42]} 18. Qc2 {[%clk 0:01:57]}  Kh8 {[%clk 0:02:40]} 19. Rd1 {[%clk 0:01:54]}  Qc8 {[%clk 0:02:31]} 20. Nd5 {[%clk 0:01:53]}  Bxd5 {[%clk 0:02:31]} 21. exd5 {[%clk 0:01:53]}  f5 {[%clk 0:02:24]} 22. f4 {[%clk 0:01:32]}  Ne4 {[%clk 0:02:20]} 23. Bf3 {[%clk 0:01:27]}  a4 {[%clk 0:01:48]} 24. b4 {[%clk 0:01:01]}  b5 {[%clk 0:01:48]} 25. c5 {[%clk 0:01:00]}  dxc5 {[%clk 0:01:40]} 26. Bxe4 {[%clk 0:00:56]}  fxe4 {[%clk 0:01:39]} 27. bxc5 {[%clk 0:00:57]}  Qg4 {[%clk 0:01:38]} 28. Rg1 {[%clk 0:00:41]}  Qf3 {[%clk 0:01:39]} 29. Bd4 {[%clk 0:00:32]}  Bxd4 {[%clk 0:01:25]} 30. Rxd4 {[%clk 0:00:32]}  gxf4 {[%clk 0:01:26]} 31. Qxe4 {[%clk 0:00:28]}  Qc3+ {[%clk 0:01:25]} 32. Rd2 {[%clk 0:00:08]}  Qc1+ {[%clk 0:01:19]} 33. Rd1 {[%clk 0:00:05]}  Qxc5 {[%clk 0:01:20]} 34. Qe5+ {[%clk 0:00:04]}  Rf6 {[%clk 0:01:20]} 35. Rg2 {[%clk 0:00:04]}  f3 {[%clk 0:01:18]} 36. Rf2 {[%clk 0:00:04]}  Qb4+ {[%clk 0:01:06]} 37. Kf1 {[%clk 0:00:04]}  Qg4 {[%clk 0:00:56]} 38. d6 {[%clk 0:00:04]}  Qh3+ {[%clk 0:00:51]} 39. Ke1 {[%clk 0:00:04]}  Qe6 {[%clk 0:00:48]} 40. Qxe6 {[%clk 0:00:02]}  Rxe6+ {[%clk 0:00:49]} 41. Kf1 {[%clk 0:00:02]}  Rxd6 {[%clk 0:00:46]} 42. Rxd6 {[%clk 0:00:02]}  exd6 {[%clk 0:00:47]} 43. Rxf3 {[%clk 0:00:03]}  b4 {[%clk 0:00:48]} 44. Rf7 {[%clk 0:00:02]}  b3 {[%clk 0:00:44]} 45. a3 {[%clk 0:00:03]}  Rb8 {[%clk 0:00:43]} 0-1


[Site "https://www.chess.com"]